fUSD/lending_fUSD_20260109
["ID","MTS","AMOUNT","RATE_DAILY","PERIOD"]
[401153526,1767985845750,-151.0,0.00015857,2]
[401153527,1767985845760,-151.0,0.00015857,2]
[401153528,1767985845769,-661.58,0.00017041,2]
[401153529,1767985845780,-466.84,0.00017675,2]
[401153530,1767985845789,-1864.42407422,0.000179,2]
[401153531,1767985845799,-830123.86232892,0.00018,2]
[401153532,1767985845809,-86046.95817823,0.00018,2]
[401153533,1767985845846,-438.0,0.00018,2]
[401153534,1767985845857,-622.9815853,0.00018,2]
[401153535,1767985845868,-1130.776072,0.00018,2]
[401153536,1767985845879,-9970.93987114,0.00018,2]
[401153537,1767985846075,-809.74516329,0.00018,2]
[401153538,1767985846317,-12030.29575739,0.00018,2]
[401153539,1767985846329,-2226.12780612,0.00018,2]
[401153540,1767985846340,-8044.72633569,0.00018,2]
[401153541,1767985846351,-11947.57819722,0.00018,2]
[401153542,1767985846408,-1912.77047311,0.00018,2]
[401153543,1767985846419,-312.5,0.00018,2]
[401153545,1767985846431,-39852.53728774,0.00018,2]
[401153547,1767985846441,-600.0,0.00018,2]
[401153549,1767985846450,-417301.22123726,0.00018,2]
[401153552,1767985846476,-11225.39299295,0.00018,2]
[401153563,1767985846582,-68854.39114272,0.00018,2]
[401153565,1767985846594,-1190.19780349,0.00018,2]
[401154417,1767986764471,9413.65002386,0.00011,2]
[401154421,1767986967147,-448.42295485,0.0001305,2]
[401154422,1767986967167,-250.0,0.00014355,2]
[401154423,1767986967186,-483.51767171,0.00015359,2]
[401154543,1767987033429,-200.0,0.0001461,2]
[401154544,1767987033439,-519.39,0.00014641,2]
[401154545,1767987033448,-191.91478254,0.00015,2]
[401154546,1767987033462,-58.08521746,0.00015,2]
[401154547,1767987033475,-16.48232829,0.00015359,2]
[401154548,1767987033485,-300.0,0.00015359,2]
[401154549,1767987033496,-195.0,0.00015359,2]
[401154550,1767987033506,-193.0,0.00015359,2]
[401154551,1767987033516,-300.0,0.00015359,2]
[401154552,1767987033525,-56.19245425,0.00015359,2]
[401154559,1767987038497,-243.80754575,0.00015359,2]
[401154560,1767987038509,-300.0,0.00015359,2]
[401154561,1767987038519,-300.0,0.00015359,2]
[401154562,1767987038529,-195.0,0.00015366,2]
[401154563,1767987038540,-300.0,0.00015366,2]
[401154564,1767987038550,-519.39,0.00015373,2]
[401154565,1767987038560,-222.0,0.00015395,2]
[401154566,1767987038569,-300.0,0.00015395,2]
[401154567,1767987038578,-1200.0,0.00015395,2]
[401154568,1767987038589,-286.0,0.00015395,2]
[401154569,1767987038598,-150.0,0.00015396,2]
[401154570,1767987038607,-150.0,0.00015396,2]
[401154571,1767987038616,-664.0,0.00015396,2]
[401154572,1767987038625,-500.0,0.00015396,2]
[401154573,1767987038634,-166.085344,0.00015396,2]
[401154574,1767987038644,-500.0,0.00015396,2]
[401154575,1767987038653,-150.0,0.00015451,2]
[401154576,1767987038662,-200.0,0.00015451,2]
[401154577,1767987038671,-664.0,0.00015451,2]
[401154578,1767987038681,-593.85856957,0.00015451,2]
[401154579,1767987038690,-500.0,0.00015451,2]
[401154580,1767987038699,-300.0,0.00015477,2]
[401154581,1767987038708,-604.02156347,0.00015478,2]
[401154582,1767987038718,-3164.17222731,0.00015478,2]
[401154583,1767987038730,-1282.2401957,0.00015478,2]
[401154584,1767987038740,-9187.75677103,0.00015478,2]
[401154585,1767987038749,-334.73210618,0.00015478,2]
[401154586,1767987038758,-664.0,0.00015506,2]
[401154587,1767987038767,-500.0,0.00015506,2]
[401154588,1767987038776,-664.0,0.0001556,2]
[401154589,1767987038786,-500.0,0.0001556,2]
[401154590,1767987038795,-500.0,0.00015567,2]
[401154591,1767987038804,-500.0,0.00015567,2]
[401154592,1767987038813,-420.18705832,0.00015567,2]
[401154593,1767987038823,-500.0,0.00015567,2]
[401154594,1767987038832,-500.0,0.00015567,2]
[401154595,1767987038841,-500.0,0.00015567,2]
[401154596,1767987038850,-500.0,0.00015567,2]
[401154597,1767987038859,-500.0,0.00015567,2]
[401154598,1767987038869,-500.0,0.00015567,2]
[401154599,1767987038878,-500.0,0.00015567,2]
[401154600,1767987038887,-450.0,0.00015567,2]
[401154601,1767987038896,-500.0,0.00015567,2]
[401154602,1767987038906,-500.0,0.00015567,2]
[401154603,1767987038915,-500.0,0.00015568,2]
[401154604,1767987038924,-332.92977178,0.00015568,2]
[401154605,1767987038935,-353.14040368,0.00015568,2]
[401154606,1767987038943,-248.89704043,0.00015568,2]
[401154607,1767987038953,-610.39445239,0.00015568,2]
[401154608,1767987038962,-174.98177787,0.00015568,2]
[401154609,1767987038971,-150.0,0.00015568,2]
[401154610,1767987038980,-2757.30870405,0.00015569,2]
[401154611,1767987039050,-1956.55234675,0.00015569,2]
[401154612,1767987039062,-6167.00679642,0.00015569,2]
[401154613,1767987039073,-1042.62914991,0.00015569,2]
[401154614,1767987039084,-9515.29553394,0.00015569,2]
[401154615,1767987039095,-1845.42599936,0.00015569,2]
[401154616,1767987039106,-269.3352841,0.00015569,2]
[401154617,1767987039117,-4147.39937769,0.00015569,2]
[401154618,1767987039128,-499.092,0.00015569,2]
[401154619,1767987040183,-81989.43864747,0.00015569,2]
[401154620,1767987040199,-14587.53601149,0.00015569,2]
[401154621,1767987040210,-79025.83991162,0.00015569,2]
[401154622,1767987040221,-814.154031,0.00015569,2]
[401154623,1767987040232,-269.58297787,0.00015569,2]
[401154624,1767987040244,-573.674504,0.00015569,2]
[401154625,1767987040275,-16710.6270883,0.00015569,2]
[401154626,1767987040286,-10045.45113752,0.00015569,2]
[401154627,1767987040297,-4314.1106964,0.00015569,2]
[401154628,1767987040308,-763469.53980211,0.00015569,2]
[401154629,1767987040317,-33584.3474,0.00015579,2]
[401154630,1767987040326,-2500.0,0.00015579,2]
[401154631,1767987040337,-611.41902284,0.00015579,2]
[401154633,1767987040346,-6378.74095923,0.00015579,2]
[401154634,1767987040356,-188.58261879,0.00015588,2]
[401154636,1767987040365,-15841.74849378,0.00015588,2]
[401154637,1767987040375,-1506.7,0.00015591,2]
[401154638,1767987040384,-664.0,0.00015615,2]
[401154639,1767987040394,-445.1864425,0.00015615,2]
[401154640,1767987040403,-690.416,0.00015669,2]
[401154641,1767987040412,-500.0,0.00015669,2]
[401154642,1767987040422,-500.0,0.00015669,2]
[401154643,1767987040431,-500.0,0.00015669,2]
[401154644,1767987040440,-500.0,0.00015669,2]
[401154645,1767987040450,-500.0,0.00015669,2]
[401154646,1767987040460,-500.0,0.00015669,2]
[401154647,1767987040473,-500.0,0.00015669,2]
[401154648,1767987040482,-500.0,0.00015669,2]
[401154649,1767987040492,-500.0,0.00015669,2]
[401154650,1767987040501,-500.0,0.00015669,2]
[401154651,1767987040510,-500.0,0.00015669,2]
[401154652,1767987040519,-500.0,0.00015669,2]
[401154653,1767987040529,-200.0,0.00015669,2]
[401154654,1767987040832,-500.0,0.00015669,2]
[401154655,1767987040862,-500.0,0.00015669,2]
[401154656,1767987040872,-200.0,0.00015669,2]
[401154657,1767987040881,-500.0,0.00015669,2]
[401154658,1767987040891,-500.0,0.00015669,2]
[401154659,1767987040899,-500.0,0.00015669,2]
[401154660,1767987040909,-500.0,0.00015669,2]
[401154661,1767987040919,-500.0,0.00015669,2]
[401154662,1767987040928,-500.0,0.00015669,2]
[401154663,1767987040937,-500.0,0.00015669,2]
[401154664,1767987040946,-500.0,0.00015669,2]
[401154665,1767987040957,-500.0,0.00015669,2]
[401154666,1767987040966,-500.0,0.00015669,2]
[401154667,1767987040976,-500.0,0.00015669,2]
[401154668,1767987040985,-200.0,0.00015669,2]
[401154669,1767987040995,-151.0,0.00015669,2]
[401154670,1767987041004,-151.0,0.00015669,2]
[401154671,1767987041013,-151.0,0.00015669,2]
[401154672,1767987041024,-151.0,0.00015669,2]
[401154673,1767987041034,-151.0,0.00015669,2]
[401154674,1767987041044,-151.0,0.00015669,2]
[401154675,1767987041054,-151.0,0.00015669,2]
[401154676,1767987041063,-151.0,0.00015669,2]
[401154677,1767987041073,-151.0,0.00015669,2]
[401154678,1767987041082,-151.0,0.00015669,2]
[401154679,1767987041092,-151.0,0.00015669,2]
[401154680,1767987041102,-151.0,0.00015669,2]
[401154681,1767987041111,-151.0,0.00015669,2]
[401154682,1767987041120,-151.0,0.00015669,2]
[401154683,1767987041129,-151.0,0.00015669,2]
[401154684,1767987041139,-151.0,0.00015669,2]
[401154685,1767987041149,-151.0,0.00015669,2]
[401154686,1767987041159,-151.0,0.00015669,2]
[401154687,1767987041169,-151.0,0.00015669,2]
[401154688,1767987041179,-151.0,0.00015669,2]
[401154689,1767987041188,-151.0,0.00015669,2]
[401154690,1767987041197,-151.0,0.00015669,2]
[401154691,1767987041207,-151.0,0.00015669,2]
[401154692,1767987041216,-151.0,0.00015669,2]
[401154693,1767987041225,-151.0,0.00015669,2]
[401154694,1767987041234,-151.0,0.00015669,2]
[401154695,1767987041244,-151.0,0.00015669,2]
[401154696,1767987041254,-151.0,0.00015669,2]
[401154697,1767987041263,-151.0,0.00015669,2]
[401154698,1767987041273,-151.0,0.00015669,2]
[401154699,1767987041282,-151.0,0.00015669,2]
[401154700,1767987041292,-151.0,0.00015669,2]
[401154701,1767987041301,-230.26346356,0.0001567,2]
[401154702,1767987041310,-664.0,0.0001567,2]
[401154703,1767987041319,-282.04,0.0001567,2]
[401154704,1767987041329,-500.0,0.00015678,2]
[401154705,1767987041339,-500.0,0.00015678,2]
[401154706,1767987041349,-549.36394183,0.00015678,2]
[401154707,1767987041358,-573.37968592,0.00015678,2]
[401154708,1767987041367,-500.0,0.00015678,2]
[401154709,1767987041376,-556.51,0.00015678,2]
[401154710,1767987041386,-500.0,0.00015678,2]
[401154711,1767987041395,-178.26,0.00015678,2]
[401154712,1767987041404,-500.0,0.00015678,2]
[401154713,1767987041414,-500.0,0.00015678,2]
[401154714,1767987041423,-500.0,0.00015678,2]
[401154715,1767987041433,-500.0,0.00015678,2]
[401154716,1767987041442,-500.0,0.00015678,2]
[401154717,1767987041451,-500.0,0.00015678,2]
[401154718,1767987041463,-398.9473792,0.00015678,2]
[401154719,1767987041476,-1000.0,0.00015688,2]
[401154720,1767987041486,-664.0,0.00015725,2]
[401154721,1767987041495,-13634.169194,0.00015747,2]
[401154722,1767987041505,-664.0,0.0001578,2]
[401154723,1767987041515,-500.0,0.00015788,2]
[401154724,1767987041524,-597.23624248,0.00015788,2]
[401154725,1767987041534,-500.0,0.00015788,2]
[401154726,1767987041543,-484.1427963,0.00015788,2]
[401154727,1767987041553,-604.02156346,0.00015824,2]
[401154728,1767987041563,-664.0,0.00015834,2]
[401154729,1767987041572,-15841.74849375,0.00015845,2]
[401154730,1767987041582,-664.0,0.00015889,2]
[401154731,1767987041593,-664.0,0.00015944,2]
[401154732,1767987041603,-282.04,0.00015944,2]
[401154733,1767987041612,-664.0,0.00015999,2]
[401154734,1767987041622,-219.64234623,0.00016006,2]
[401154735,1767987041631,-13634.169194,0.00016016,2]
[401154736,1767987041640,-664.0,0.00016054,2]
[401154737,1767987041649,-1323.16,0.00016082,2]
[401154738,1767987041658,-661.58,0.00016082,2]
[401154739,1767987041667,-15841.74849375,0.00016102,2]
[401154740,1767987041676,-519.39,0.00016105,2]
[401154741,1767987041685,-250.0,0.00016105,2]
[401154742,1767987041694,-664.0,0.00016108,2]
[401154743,1767987041703,-334.73210618,0.0001611,2]
[401154744,1767987041712,-664.0,0.00016163,2]
[401154745,1767987041721,-604.02156346,0.0001617,2]
[401154746,1767987041730,-202.84026902,0.00016217,2]
[401154747,1767987041739,-200.0,0.00016217,2]
[401154748,1767987041748,-626.22881488,0.00016217,2]
[401154749,1767987041758,-664.0,0.00016218,2]
[401154750,1767987041767,-282.04,0.00016218,2]
[401154751,1767987041776,-661.58,0.00016241,2]
[401154752,1767987041786,-500.0,0.00016272,2]
[401154753,1767987041796,-85307.77,0.00016272,2]
[401154754,1767987041806,-981.42,0.00016272,2]
[401154755,1767987041815,-165.71,0.00016272,2]
[401154756,1767987041825,-664.0,0.00016273,2]
[401154757,1767987041835,-13634.169194,0.00016285,2]
[401154758,1767987041844,-664.0,0.00016328,2]
[401154759,1767987041854,-15841.74849375,0.00016359,2]
[401154760,1767987041863,-664.0,0.00016382,2]
[401154761,1767987041872,-664.0,0.00016437,2]
[401154762,1767987041881,-664.0,0.00016492,2]
[401154763,1767987041890,-282.04,0.00016492,2]
[401154764,1767987041899,-604.02156346,0.00016516,2]
[401154765,1767987041909,-664.0,0.00016547,2]
[401154766,1767987041918,-13634.169194,0.00016554,2]
[401154767,1767987041927,-664.0,0.00016601,2]
[401154768,1767987041937,-15841.74849375,0.00016616,2]
[401154769,1767987041946,-682.02140532,0.00016656,2]
[401154770,1767987041955,-159.9,0.00016712,2]
[401154771,1767987041965,-161.78,0.00016718,2]
[401154772,1767987041974,-8936.5742642,0.00016723,2]
[401154773,1767987041983,-334.73210618,0.00016742,2]
[401154774,1767987041992,-188.58261879,0.00016744,2]
[401154775,1767987042001,-282.07,0.00016765,2]
[401154776,1767987042013,-200.0,0.00016765,2]
[401154777,1767987042023,-13634.169194,0.00016824,2]
[401154778,1767987042033,-519.39,0.00016837,2]
[401154779,1767987042042,-152.0,0.00016839,3]
[401154780,1767987042051,-420.0,0.00016842,2]
[401154781,1767987042062,-1000.0,0.00016844,2]
[401154782,1767987042071,-604.02156346,0.00016862,2]
[401154783,1767987042081,-15841.74849375,0.00016872,2]
[401154784,1767987042092,-195.0,0.00016894,2]
[401154785,1767987042101,-193.0,0.00016894,2]
[401154786,1767987042111,-300.0,0.00016894,2]
[401154787,1767987042121,-250.0,0.00016894,2]
[401154788,1767987042130,-300.0,0.00016894,2]
[401154789,1767987042139,-1680.0,0.00016927,2]
[401154790,1767987042148,-661.58,0.00016941,2]
[401154791,1767987042158,-250.0,0.00017,2]
[401154792,1767987042167,-661.58,0.00017041,2]
[401154793,1767987042176,-661.58,0.00017041,2]
[401154794,1767987042186,-661.58,0.00017041,2]
[401154795,1767987042196,-661.58,0.00017041,2]
[401154796,1767987042205,-661.58,0.00017041,2]
[401154797,1767987042215,-661.58,0.00017041,2]
[401154798,1767987042224,-661.58,0.00017041,2]
[401154799,1767987042234,-661.58,0.00017041,2]
[401154800,1767987042244,-661.58,0.00017041,2]
[401154801,1767987042254,-661.58,0.00017041,2]
[401154802,1767987042264,-491.46,0.00017041,2]
[401154803,1767987042273,-466.84,0.00017078,2]
[401154804,1767987042283,-13634.169194,0.00017093,2]
[401154805,1767987042293,-1000.0,0.00017099,2]
[401154806,1767987042302,-1000.0,0.00017099,2]
[401154807,1767987042311,-1000.0,0.00017099,2]
[401154808,1767987042321,-1000.0,0.00017099,2]
[401154809,1767987042330,-1000.0,0.00017099,2]
[401154810,1767987042339,-1000.0,0.00017099,2]
[401154811,1767987042348,-1000.0,0.00017099,2]
[401154812,1767987042357,-1000.0,0.00017099,2]
[401154813,1767987042367,-1000.0,0.00017099,2]
[401154814,1767987042376,-1000.0,0.00017099,2]
[401154815,1767987042385,-1000.0,0.00017099,2]
[401154816,1767987042394,-1000.0,0.00017099,2]
[401154817,1767987042403,-250.0,0.00017099,2]
[401154818,1767987042413,-250.0,0.00017099,2]
[401154819,1767987042422,-500.0,0.00017099,2]
[401154820,1767987042431,-250.0,0.00017099,2]
[401154821,1767987042441,-500.0,0.00017099,2]
[401154822,1767987042451,-250.0,0.00017099,2]
[401154823,1767987042460,-500.0,0.00017099,2]
[401154824,1767987042473,-250.0,0.00017099,2]
[401154825,1767987042483,-500.0,0.00017099,2]
[401154826,1767987042492,-250.0,0.00017099,2]
[401154827,1767987042502,-500.0,0.00017099,2]
[401154828,1767987042513,-250.0,0.00017099,2]
[401154829,1767987042522,-250.0,0.00017099,2]
[401154830,1767987042531,-500.0,0.00017099,2]
[401154831,1767987042543,-500.0,0.00017099,2]
[401154832,1767987042552,-2000.0,0.00017099,2]
[401154833,1767987042561,-250.0,0.00017099,2]
[401154834,1767987042571,-500.0,0.00017099,2]
[401154835,1767987042581,-500.0,0.00017099,2]
[401154836,1767987042590,-2000.0,0.00017099,2]
[401154838,1767987042600,-250.0,0.00017099,2]
[401154839,1767987042610,-500.0,0.00017099,2]
[401154841,1767987042619,-500.0,0.00017099,2]
[401154843,1767987042629,-2000.0,0.00017099,2]
[401154845,1767987042639,-250.0,0.00017099,2]
[401154847,1767987042649,-500.0,0.00017099,2]
[401154848,1767987042659,-500.0,0.00017099,2]
[401154849,1767987042669,-2000.0,0.00017099,2]
[401154850,1767987042679,-553.64373807,0.00017099,2]
[401154851,1767987042688,-250.0,0.00017099,2]
[401154852,1767987042698,-500.0,0.00017099,2]
[401154853,1767987042707,-2000.0,0.00017099,2]
[401154854,1767987042716,-500.0,0.00017099,2]
[401154855,1767987042726,-571.49862836,0.00017099,2]
[401154856,1767987042735,-2000.0,0.00017099,2]
[401154857,1767987042744,-500.0,0.00017099,2]
[401154858,1767987042754,-2000.0,0.00017099,2]
[401154859,1767987042763,-500.0,0.00017099,2]
[401154860,1767987042773,-2000.0,0.00017099,2]
[401154861,1767987042782,-500.0,0.00017099,2]
[401154862,1767987042791,-500.0,0.00017099,2]
[401154863,1767987042801,-407.91279506,0.00017099,2]
[401154864,1767987042809,-322.6107,0.00017099,2]
[401154865,1767987042819,-500.0,0.00017099,2]
[401154866,1767987042828,-500.0,0.00017099,2]
[401154867,1767987042838,-620.0,0.00017099,2]
[401154868,1767987042847,-159.10718444,0.00017128,2]
[401154869,1767987042856,-15841.74849375,0.00017129,2]
[401154870,1767987042866,-466.84,0.00017178,2]
[401154871,1767987042875,-466.84,0.00017178,2]
[401154872,1767987042886,-466.84,0.00017178,2]
[401154873,1767987042896,-466.84,0.00017178,2]
[401154874,1767987042905,-466.84,0.00017178,2]
[401154875,1767987042914,-729.06,0.00017178,2]
[401154876,1767987042924,-487.0,0.00017185,2]
[401154877,1767987042933,-604.02156346,0.00017208,2]
[401154878,1767987042942,-200.0,0.00017313,2]
[401154879,1767987042951,-13634.169194,0.00017362,2]
[401154880,1767987042961,-15841.74849375,0.00017386,2]
[401154881,1767987042970,-20530.85631319,0.00017419,2]
[401154882,1767987042979,-33397.70116526,0.00017419,2]
[401154883,1767987042988,-47167.52174728,0.00017419,2]
[401154884,1767987042998,-61033.7772,0.00017419,2]
[401154885,1767987043007,-165.71,0.00017434,2]
[401154886,1767987043016,-487.0,0.00017473,2]
[401154887,1767987043027,-577.0,0.00017484,2]
[401154888,1767987043036,-604.02156346,0.00017554,2]
[401154889,1767987043045,-487.0,0.00017569,2]
[401154890,1767987043054,-519.39,0.00017569,2]
[401154891,1767987043063,-577.0,0.00017607,2]
[401154892,1767987043073,-236.0,0.00017617,2]
[401154893,1767987043082,-13634.169194,0.00017631,2]
[401154894,1767987043093,-2082.29932478,0.0001764,2]
[401154895,1767987043102,-150.0,0.0001764,2]
[401154896,1767987043111,-15841.74849375,0.00017643,2]
[401154897,1767987043121,-574.12855637,0.00017647,2]
[401154898,1767987043131,-2493.79008389,0.00017673,2]
[401154899,1767987043140,-302.73,0.00017682,2]
[401154900,1767987043149,-155.23,0.00017682,2]
[401154901,1767987043158,-556.4,0.00017682,2]
[401154902,1767987043167,-556.4,0.00017682,2]
[401154903,1767987043176,-556.4,0.00017682,2]
[401154904,1767987043186,-323.63,0.00017682,2]
[401154905,1767987043195,-556.4,0.00017682,2]
[401154906,1767987043205,-179.14,0.00017682,2]
[401154907,1767987043214,-171.4,0.00017682,2]
[401154908,1767987043224,-179.14,0.00017682,2]
[401154909,1767987043233,-171.4,0.00017682,2]
[401154910,1767987043242,-487.0,0.00017688,2]
[401154911,1767987043252,-1000.0,0.000177,2]
[401154912,1767987043261,-152.0,0.00017708,4]
[401154913,1767987043271,-487.0,0.00017717,2]
[401154914,1767987043280,-326.12,0.00017745,2]
[401154915,1767987043289,-151.0,0.00017772,2]
[401154916,1767987043299,-2000.0,0.000178,2]
[401154917,1767987043308,-1000.0,0.000178,2]
[401154918,1767987043317,-12099.97294963,0.000178,2]
[401154919,1767987043327,-200.35779431,0.00017808,2]
[401154920,1767987043336,-22119.43413187,0.0001783,2]
[401154922,1767987043347,-200.0,0.00017855,2]
[401154923,1767987043356,-200.0,0.00017856,2]
[401154924,1767987043366,-151.0,0.00017886,2]
[401154925,1767987043376,-376.90325807,0.00017897,2]
[401154926,1767987043386,-376.90325805,0.00017899,2]
[401154927,1767987043396,-10000.0,0.000179,2]
[401154928,1767987043406,-9704.82107619,0.000179,3]
[401154929,1767987043416,-188.58261879,0.000179,2]
[401154930,1767987043425,-565.17771938,0.000179,2]
[401154931,1767987043435,-376.90325805,0.000179,2]
[401154932,1767987043444,-1771.20287051,0.000179,2]
[401154933,1767987043454,-1771.20287051,0.000179,2]
[401154934,1767987043465,-1771.20287051,0.000179,2]
[401154935,1767987043475,-1771.20287051,0.000179,2]
[401154936,1767987043484,-1771.20287051,0.000179,2]
[401154937,1767987043493,-1771.20287051,0.000179,2]
[401154938,1767987043505,-1771.20287051,0.000179,2]
[401154939,1767987043516,-1771.20287051,0.000179,2]
[401154940,1767987043526,-1000.0,0.000179,2]
[401154941,1767987043535,-1771.20287051,0.000179,2]
[401154942,1767987043546,-1771.20287051,0.000179,2]
[401154943,1767987043556,-1771.20287051,0.000179,2]
[401154944,1767987043565,-1771.20287051,0.000179,2]
[401154945,1767987043575,-1771.20287051,0.000179,2]
[401154946,1767987043585,-1771.20287051,0.000179,2]
[401154947,1767987043596,-1771.20287051,0.000179,2]
[401154948,1767987043605,-1771.20287051,0.000179,2]
[401154949,1767987043616,-1771.20287051,0.000179,2]
[401154950,1767987043626,-15841.74849375,0.000179,2]
[401154951,1767987043636,-1771.20287051,0.000179,2]
[401154952,1767987043645,-5419.66632669,0.000179,2]
[401154953,1767987043654,-604.02156346,0.000179,2]
[401154954,1767987043663,-13634.169194,0.000179,2]
[401154955,1767987043673,-27199.40669553,0.000179,2]
[401154956,1767987043682,-500.0,0.000179,2]
[401154957,1767987043692,-500.0,0.000179,2]
[401154958,1767987043702,-500.0,0.000179,2]
[401154959,1767987043711,-500.0,0.000179,2]
[401154960,1767987043720,-500.0,0.000179,2]
[401154961,1767987043729,-500.0,0.000179,2]
[401154962,1767987043738,-500.0,0.000179,2]
[401154963,1767987043747,-500.0,0.000179,2]
[401154964,1767987043757,-500.0,0.000179,2]
[401154965,1767987043766,-500.0,0.000179,2]
[401154966,1767987043775,-500.0,0.000179,2]
[401154967,1767987043784,-500.0,0.000179,2]
[401154968,1767987043794,-500.0,0.000179,2]
[401154969,1767987043803,-500.0,0.000179,2]
[401154970,1767987043812,-500.0,0.000179,2]
[401154971,1767987043822,-500.0,0.000179,2]
[401154972,1767987043831,-500.0,0.000179,2]
[401154973,1767987043842,-500.0,0.000179,2]
[401154974,1767987043852,-500.0,0.000179,2]
[401154975,1767987043861,-500.0,0.000179,2]
[401154976,1767987043871,-3391.0,0.000179,2]
[401154977,1767987043880,-1000.0,0.00017937,2]
[401154978,1767987043889,-1000.0,0.00017972,2]
[401154979,1767987043899,-500.0,0.00017973,2]
[401154980,1767987043909,-500.0,0.00017973,2]
[401154981,1767987043918,-500.0,0.00017973,2]
[401154982,1767987043928,-500.0,0.00017973,2]
[401154983,1767987043937,-286.84842062,0.00017973,2]
[401154984,1767987043946,-500.0,0.00017973,2]
[401154985,1767987043955,-500.0,0.00017973,2]
[401154986,1767987043964,-500.0,0.00017973,2]
[401154987,1767987043973,-500.0,0.00017973,2]
[401154988,1767987043982,-500.0,0.00017973,2]
[401154989,1767987043991,-279.31517583,0.00017973,2]
[401154990,1767987044001,-500.0,0.00017973,2]
[401154991,1767987044010,-500.0,0.00017973,2]
[401154992,1767987044019,-150.0,0.00017973,2]
[401154993,1767987044028,-500.0,0.00017973,2]
[401154994,1767987044038,-500.0,0.00017973,2]
[401154995,1767987044047,-500.0,0.00017973,2]
[401154996,1767987044056,-500.0,0.00017973,2]
[401154997,1767987044065,-501.05787152,0.00017973,2]
[401154998,1767987044075,-500.0,0.00017973,2]
[401154999,1767987044084,-578.02071049,0.00017973,2]
[401155000,1767987044095,-429.09119552,0.00017973,2]
[401155001,1767987044104,-500.0,0.00017973,2]
[401155002,1767987044113,-500.0,0.00017973,2]
[401155003,1767987044123,-500.0,0.00017973,2]
[401155004,1767987044132,-500.0,0.00017973,2]
[401155005,1767987044141,-554.86072459,0.00017973,2]
[401155006,1767987044150,-500.0,0.00017973,2]
[401155007,1767987044159,-500.0,0.00017973,2]
[401155008,1767987044168,-500.0,0.00017973,2]
[401155009,1767987044177,-500.0,0.00017973,2]
[401155010,1767987044186,-500.0,0.00017973,2]
[401155011,1767987044195,-500.0,0.00017973,2]
[401155012,1767987044205,-500.0,0.00017973,2]
[401155013,1767987044214,-398.03125352,0.00017973,2]
[401155014,1767987044223,-500.0,0.00017973,2]
[401155015,1767987044232,-515.27642925,0.00017973,2]
[401155016,1767987044241,-195.06667749,0.00017973,2]
[401155017,1767987044250,-609.94892981,0.00017973,2]
[401155018,1767987044259,-168.53464326,0.00017973,2]
[401155019,1767987044268,-500.0,0.00017973,2]
[401155020,1767987044278,-500.0,0.00017973,2]
[401155021,1767987044288,-500.0,0.00017973,2]
[401155022,1767987044297,-500.0,0.00017973,2]
[401155023,1767987044307,-500.0,0.00017973,2]
[401155024,1767987044317,-500.0,0.00017973,2]
[401155025,1767987044326,-500.0,0.00017973,2]
[401155026,1767987044336,-500.0,0.00017973,2]
[401155027,1767987044345,-500.0,0.00017973,2]
[401155028,1767987044355,-500.0,0.00017973,2]